[Event "NJSK 2018 Meisjes AB"]
[Site "Assen, Netherlands"]
[Date "2018.05.01"]
[Round "3.7"]
[White "De Boer, Marit"]
[Black "Heskes, Ebba"]
[Result "1-0"]
[TimeControl "40/90m+30m+30sec/move"]
[WhiteElo "1446"]
[BlackElo "1266"]

1. d4 {[%clk 01:30:58]} {[%emt 00:00:02]} d5 {[%clk 01:30:51]} {[%emt
00:00:09]} 2. Bf4 {[%clk 01:31:19]} {[%emt 00:00:09]} Nc6 {[%clk 01:30:17]}
{[%emt 00:01:03]} 3. e3 {[%clk 01:31:36]} {[%emt 00:00:14]} Nf6 {[%clk
01:29:21]} {[%emt 00:01:27]} 4. Nf3 {[%clk 01:30:19]} {[%emt 00:01:46]} a6
{[%clk 01:28:19]} {[%emt 00:01:32]} 5. c4 {[%clk 01:29:14]} {[%emt 00:01:35]}
Bg4 {[%clk 01:26:20]} {[%emt 00:02:28]} 6. Nc3 {[%clk 01:27:30]} {[%emt
00:02:15]} e6 {[%clk 01:26:21]} {[%emt 00:00:29]} 7. a3 {[%clk 01:25:34]}
{[%emt 00:02:26]} Bd6 {[%clk 01:23:37]} {[%emt 00:03:13]} 8. Bg3 {[%clk
01:23:45]} {[%emt 00:02:19]} O-O {[%clk 01:22:14]} {[%emt 00:01:54]} 9. Bd3
{[%clk 01:21:19]} {[%emt 00:02:56]} b6 {[%clk 01:19:54]} {[%emt 00:02:51]} 10.
O-O {[%clk 01:18:19]} {[%emt 00:03:29]} Ne7 {[%clk 01:11:48]} {[%emt 00:08:36]}
11. Qc2 {[%clk 01:07:25]} {[%emt 00:11:24]} Bxf3 {[%clk 01:05:53]} {[%emt
00:06:24]} 12. gxf3 {[%clk 01:07:38]} {[%emt 00:00:18]} dxc4 {[%clk 01:04:47]}
{[%emt 00:01:37]} 13. Bxc4 {[%clk 01:07:49]} {[%emt 00:00:19]} c5 {[%clk
01:00:27]} {[%emt 00:04:50]} 14. dxc5 {[%clk 01:02:16]} {[%emt 00:06:03]} Bxc5
{[%clk 00:59:34]} {[%emt 00:01:24]} 15. Rfd1 {[%clk 00:59:24]} {[%emt
00:03:21]} Qc8 {[%clk 00:59:38]} {[%emt 00:00:25]} 16. Qe2 {[%clk 00:56:08]}
{[%emt 00:03:46]} b5 {[%clk 00:57:40]} {[%emt 00:02:28]} 17. Bb3 {[%clk
00:54:32]} {[%emt 00:02:06]} Qc6 {[%clk 00:45:52]} {[%emt 00:12:17]} 18. Rd2
{[%clk 00:51:58]} {[%emt 00:03:06]} Ned5 {[%clk 00:41:00]} {[%emt 00:05:21]} 19.
Nxd5 {[%clk 00:42:07]} {[%emt 00:10:21]} exd5 {[%clk 00:41:00]} {[%emt
00:00:29]} 20. Rc1 {[%clk 00:41:02]} {[%emt 00:01:36]} Rac8 {[%clk 00:39:58]}
{[%emt 00:01:32]} 21. Rdc2 {[%clk 00:30:56]} {[%emt 00:10:36]} Qb6 {[%clk
00:36:28]} {[%emt 00:04:00]} 22. Be5 {[%clk 00:28:46]} {[%emt 00:02:41]} Nd7
{[%clk 00:34:10]} {[%emt 00:02:47]} 23. Bd4 {[%clk 00:27:14]} {[%emt 00:02:03]}
Rc7 {[%clk 00:25:58]} {[%emt 00:08:42]} 24. Rc3 {[%clk 00:17:47]} {[%emt
00:09:58]} Qg6+ {[%clk 00:24:22]} {[%emt 00:02:05]} 25. Kh1 {[%clk 00:16:48]}
{[%emt 00:01:28]} Rfc8 {[%clk 00:24:10]} {[%emt 00:00:41]} 26. Rg1 {[%clk
00:15:02]} {[%emt 00:02:16]} Qe6 {[%clk 00:23:14]} {[%emt 00:01:28]} 27. Rxg7+
{[%clk 00:13:03]} Kf8 {[%clk 00:23:10]} {[%emt 00:03:04]} 28. Bxc5+ {[%clk
00:08:46]} {[%emt 00:04:47]} Kxg7 {[%clk 00:22:57]} {[%emt 00:00:42]} 29. Bd4+
{[%clk 00:08:54]} {[%emt 00:00:23]} Kf8 {[%clk 00:21:50]} {[%emt 00:01:36]} 30.
Qd2 {[%clk 00:07:51]} {[%emt 00:01:33]} Qh3 {[%clk 00:19:52]} {[%emt 00:02:27]}
31. Qd1 {[%clk 00:07:27]} {[%emt 00:00:56]} Rxc3 {[%clk 00:19:09]} {[%emt
00:01:13]} 32. bxc3 {[%clk 00:07:38]} {[%emt 00:00:19]} Qf5 {[%clk 00:18:36]}
{[%emt 00:01:01]} 33. Bxd5 {[%clk 00:04:40]} {[%emt 00:03:30]} Ke7 {[%clk
00:16:21]} {[%emt 00:02:44]} 34. Be4 {[%clk 00:04:52]} {[%emt 00:00:19]} Qh5
{[%clk 00:15:17]} {[%emt 00:01:33]} 35. Qb3 {[%clk 00:04:28]} {[%emt 00:00:55]}
Rg8 {[%clk 00:08:25]} {[%emt 00:07:21]} 36. Qb4+ {[%clk 00:03:50]} {[%emt
00:01:09]} Ke8 {[%clk 00:07:54]} {[%emt 00:01:01]} 37. Qb1 {[%clk 00:03:24]}
{[%emt 00:00:55]} Qh3 {[%clk 00:07:20]} {[%emt 00:01:04]} 38. f4 {[%clk
00:03:18]} {[%emt 00:00:36]} Rg4 {[%clk 00:04:40]} {[%emt 00:03:09]} 39. Bb7
{[%clk 00:02:10]} {[%emt 00:01:40]} a5 {[%clk 00:04:34]} {[%emt 00:00:37]} 40.
Qxb5 {[%clk 00:01:30]} {[%emt 00:01:09]} Rh4 {[%clk 00:04:19]} {[%emt
00:00:44]} 41. Kg1 {[%clk 00:01:22]} {[%emt 00:00:39]} Qxh2+ {[%clk 00:04:15]}
{[%emt 00:00:34]} 42. Kf1 {[%clk 00:01:43]} {[%emt 00:00:09]} Qh3+ {[%clk
00:03:20]} {[%emt 00:01:25]} 43. Ke1 {[%clk 00:01:42]} {[%emt 00:00:31]} Qe6
{[%clk 00:01:50]} {[%emt 00:02:00]} 44. Bc6 {[%clk 00:00:42]} {[%emt 00:01:31]}
Ke7 {[%clk 00:29:57]} {[%emt 00:02:22]} 45. Bxd7 {[%clk 00:28:20]} {[%emt
00:02:52]} Qxd7 {[%clk 00:30:19]} {[%emt 00:00:08]} 46. Bf6+ {[%clk 00:28:16]}
{[%emt 00:00:34]} Ke6 {[%clk 00:30:08]} {[%emt 00:00:41]} 47. Qxd7+ {[%clk
00:28:35]} {[%emt 00:00:11]} Kxd7 {[%clk 00:30:31]} {[%emt 00:00:06]} 48. Bxh4
{[%clk 00:28:56]} {[%emt 00:00:09]} a4 {[%clk 00:30:38]} {[%emt 00:00:24]} 49.
Kd2 {[%clk 00:29:18]} {[%emt 00:00:08]} Kd6 {[%clk 00:30:55]} {[%emt 00:00:13]}
50. Kd3 {[%clk 00:29:39]} {[%emt 00:00:09]} Kd5 {[%clk 00:30:58]} {[%emt
00:00:27]} 51. e4+ {[%clk 00:29:58]} {[%emt 00:00:11]} Kc5 {[%clk 00:31:10]}
{[%emt 00:00:19]} 52. Be7+ {[%clk 00:30:14]} {[%emt 00:00:14]} Kc6 {[%clk
00:31:31]} {[%emt 00:00:09]} 53. Kd4 {[%clk 00:30:38]} {[%emt 00:00:06]} Kd7
{[%clk 00:31:32]} {[%emt 00:00:28]} 54. Bg5 {[%clk 00:30:57]} {[%emt 00:00:12]}
Kd6 {[%clk 00:31:02]} {[%emt 00:01:01]} 55. e5+ {[%clk 00:31:18]} {[%emt
00:00:09]} Ke6 {[%clk 00:31:18]} {[%emt 00:00:14]} 56. c4 {[%clk 00:31:40]}
{[%emt 00:00:08]} h5 {[%clk 00:31:19]} {[%emt 00:00:28]} 57. c5 {[%clk
00:32:00]} {[%emt 00:00:10]} Kd7 {[%clk 00:31:07]} {[%emt 00:00:41]} 58. Kd5
{[%clk 00:32:21]} {[%emt 00:00:09]} Kc7 {[%clk 00:31:22]} {[%emt 00:00:15]} 59.
f5 {[%clk 00:32:44]} {[%emt 00:00:08]} Kd7 {[%clk 00:31:16]} {[%emt 00:00:35]}
60. e6+ {[%clk 00:33:05]} {[%emt 00:00:10]} fxe6+ {[%clk 00:31:37]} {[%emt
00:00:09]} 61. fxe6+ {[%clk 00:33:31]} {[%emt 00:00:04]} Kc7 {[%clk 00:31:20]}
{[%emt 00:00:47]} 62. e7 {[%clk 00:33:48]} {[%emt 00:00:13]} Kd7 {[%clk
00:31:44]} {[%emt 00:00:06]} 63. c6+ {[%clk 00:34:11]} {[%emt 00:00:08]} Ke8
{[%clk 00:32:00]} {[%emt 00:00:14]} 64. c7 {[%clk 00:34:35]} {[%emt 00:00:06]}
Kd7 {[%clk 00:32:09]} {[%emt 00:00:21]} 65. c8=Q+ {[%clk 00:34:48]} {[%emt
00:00:17]} Kxc8 {[%clk 00:32:33]} {[%emt 00:00:06]} 66. e8=Q+ {[%clk 00:35:10]}
{[%emt 00:00:07]} Kb7 {[%clk 00:32:54]} {[%emt 00:00:08]} 67. Qc6+ {[%clk
00:35:27]} {[%emt 00:00:14]} Ka7 {[%clk 00:33:16]} {[%emt 00:00:08]} 68. Be3+
{[%clk 00:35:36]} {[%emt 00:00:21]} Kb8 {[%clk 00:33:37]} {[%emt 00:00:10]} 69.
Bb6 {[%clk 00:35:51]} {[%emt 00:00:15]} h4 {[%clk 00:33:57]} {[%emt 00:00:09]}
70. Qc7+ {[%clk 00:36:16]} {[%emt 00:00:05]} Ka8 {[%clk 00:34:08]} {[%emt
00:00:08]} 71. Qa7# {[%clk 00:36:16]} 1-0

[Event "NJSK 2018 Meisjes AB"]
[Site "Assen, Netherlands"]
[Date "2018.05.02"]
[Round "4.1"]
[White "Duson, Robin"]
[Black "Martinez, Anna"]
[Result "1/2-1/2"]
[TimeControl "40/90m+30m+30sec/move"]
[WhiteElo "1920"]
[BlackElo "1795"]

1. e4 {[%clk 01:30:54]} {[%emt 00:00:04]} c5 {[%clk 01:30:57]} {[%emt
00:00:05]} 2. Nf3 {[%clk 01:31:18]} {[%emt 00:00:05]} a6 {[%clk 01:31:23]}
{[%emt 00:00:04]} 3. c4 {[%clk 01:25:59]} {[%emt 00:05:47]} Nc6 {[%clk
01:25:50]} {[%emt 00:06:05]} 4. d4 {[%clk 01:24:06]} {[%emt 00:02:23]} cxd4
{[%clk 01:25:51]} {[%emt 00:00:29]} 5. Nxd4 {[%clk 01:23:37]} {[%emt 00:00:58]}
e6 {[%clk 01:25:12]} {[%emt 00:01:11]} 6. Nc3 {[%clk 01:22:09]} {[%emt
00:01:57]} Bb4 {[%clk 01:23:27]} {[%emt 00:02:16]} 7. Nxc6 {[%clk 01:18:29]}
{[%emt 00:04:09]} bxc6 {[%clk 01:23:27]} {[%emt 00:00:30]} 8. Qd4 {[%clk
01:16:15]} {[%emt 00:02:43]} Qf6 {[%clk 01:21:50]} {[%emt 00:02:08]} 9. e5
{[%clk 01:12:28]} {[%emt 00:04:16]} Qe7 {[%clk 01:20:34]} {[%emt 00:01:45]} 10.
Be3 {[%clk 01:05:06]} {[%emt 00:07:52]} c5 {[%clk 01:19:06]} {[%emt 00:02:00]}
11. Qd2 {[%clk 01:04:40]} {[%emt 00:00:56]} f6 {[%clk 01:16:31]} {[%emt
00:03:06]} 12. f4 {[%clk 00:59:01]} {[%emt 00:06:08]} Bb7 {[%clk 01:13:10]}
{[%emt 00:03:52]} 13. a3 {[%clk 00:55:39]} {[%emt 00:03:52]} Ba5 {[%clk
01:12:21]} {[%emt 00:01:14]} 14. Qf2 {[%clk 00:49:23]} {[%emt 00:06:50]} Rc8
{[%clk 01:10:38]} {[%emt 00:02:14]} 15. Be2 {[%clk 00:47:57]} {[%emt 00:01:55]}
Nh6 {[%clk 01:09:54]} {[%emt 00:01:15]} 16. O-O {[%clk 00:45:02]} {[%emt
00:03:24]} O-O {[%clk 01:10:16]} {[%emt 00:00:08]} 17. Na4 {[%clk 00:43:29]}
{[%emt 00:02:03]} fxe5 {[%clk 01:06:21]} {[%emt 00:04:25]} 18. Nxc5 {[%clk
00:39:43]} {[%emt 00:04:15]} Ba8 {[%clk 01:03:48]} {[%emt 00:03:04]} 19. b4
{[%clk 00:34:46]} {[%emt 00:05:27]} exf4 {[%clk 01:03:29]} {[%emt 00:00:48]} 20.
Bxf4 {[%clk 00:28:55]} {[%emt 00:06:20]} Bb6 {[%clk 01:02:56]} {[%emt
00:01:04]} 21. Rad1 {[%clk 00:20:26]} {[%emt 00:08:59]} e5 {[%clk 01:02:45]}
{[%emt 00:00:41]} 22. Qe3 {[%clk 00:19:28]} {[%emt 00:01:27]} Rxc5 {[%clk
01:00:37]} {[%emt 00:02:40]} 23. Bxh6 {[%clk 00:18:45]} {[%emt 00:01:12]} Rxf1+
{[%clk 01:00:29]} {[%emt 00:00:38]} 24. Kxf1 {[%clk 00:16:06]} {[%emt
00:03:09]} Qf7+ {[%clk 00:53:18]} {[%emt 00:07:41]} 25. Qf2 {[%clk 00:14:11]}
{[%emt 00:02:24]} Qxf2+ {[%clk 00:52:08]} {[%emt 00:01:41]} 26. Kxf2 {[%clk
00:14:36]} {[%emt 00:00:05]} Rxc4+ {[%clk 00:51:50]} {[%emt 00:00:49]} 27. Be3
{[%clk 00:14:58]} {[%emt 00:00:07]} Rf4+ {[%clk 00:51:39]} {[%emt 00:00:42]} 28.
Bf3 {[%clk 00:15:03]} {[%emt 00:00:24]} e4 {[%clk 00:49:27]} {[%emt 00:02:43]}
29. Bxb6 {[%clk 00:15:19]} {[%emt 00:00:13]} exf3 {[%clk 00:49:49]} {[%emt
00:00:09]} 30. g3 {[%clk 00:14:44]} {[%emt 00:01:05]} Rf7 {[%clk 00:49:53]}
{[%emt 00:00:27]} 31. Rd6 {[%clk 00:12:59]} {[%emt 00:02:15]} Bc6 {[%clk
00:49:40]} {[%emt 00:00:43]} 32. Be3 {[%clk 00:12:18]} {[%emt 00:01:10]} Rf5
{[%clk 00:46:59]} {[%emt 00:03:11]} 33. h4 {[%clk 00:11:37]} {[%emt 00:01:10]}
a5 {[%clk 00:43:01]} {[%emt 00:04:31]} 34. Bb6 {[%clk 00:10:20]} {[%emt
00:01:46]} axb4 {[%clk 00:43:10]} {[%emt 00:00:21]} 35. axb4 {[%clk 00:10:42]}
{[%emt 00:00:07]} Re5 {[%clk 00:42:42]} {[%emt 00:00:58]} 36. Rd2 {[%clk
00:10:46]} {[%emt 00:00:25]} Kf7 {[%clk 00:41:56]} {[%emt 00:01:16]} 37. Bc5
{[%clk 00:09:27]} {[%emt 00:01:48]} Ke6 {[%clk 00:36:52]} {[%emt 00:05:36]} 38.
Bd4 {[%clk 00:07:25]} {[%emt 00:02:32]} Rd5 {[%clk 00:35:59]} {[%emt 00:01:21]}
39. Ke3 {[%clk 00:06:35]} {[%emt 00:01:22]} g6 {[%clk 00:35:12]} {[%emt
00:01:18]} 40. Bg7 {[%clk 00:06:11]} {[%emt 00:00:52]} Rf5 {[%clk 00:34:54]}
{[%emt 00:00:48]} 41. Bh6 {[%clk 00:03:36]} {[%emt 00:03:06]} Re5+ {[%clk
00:34:21]} {[%emt 00:01:04]} 42. Kf2 {[%clk 00:03:31]} {[%emt 00:00:34]} Re4
{[%clk 00:30:17]} {[%emt 00:04:34]} 43. Bf8 {[%clk 00:03:29]} {[%emt 00:00:32]}
Rc4 {[%clk 00:29:50]} {[%emt 00:00:57]} 44. Rb2 {[%clk 00:28:36]} {[%emt
00:05:24]} d6 {[%clk 00:56:26]} {[%emt 00:03:54]} 1/2-1/2

[Event "NJSK 2018 Meisjes AB"]
[Site "Assen, Netherlands"]
[Date "2018.05.02"]
[Round "4.2"]
[White "Den Dunnen, Lola"]
[Black "Warnaar, Alisha"]
[Result "1-0"]
[TimeControl "40/90m+30m+30sec/move"]
[WhiteElo "1912"]
[BlackElo "1647"]

1. d4 {[%clk 01:30:57]} {[%emt 00:00:02]} Nf6 {[%clk 01:30:47]} {[%emt
00:00:14]} 2. c4 {[%clk 01:31:23]} {[%emt 00:00:04]} g6 {[%clk 01:31:12]}
{[%emt 00:00:04]} 3. Nc3 {[%clk 01:31:48]} {[%emt 00:00:05]} Bg7 {[%clk
01:31:37]} {[%emt 00:00:05]} 4. e4 {[%clk 01:32:13]} {[%emt 00:00:04]} d6
{[%clk 01:32:01]} {[%emt 00:00:07]} 5. h3 {[%clk 01:32:23]} {[%emt 00:00:20]}
O-O {[%clk 01:32:21]} {[%emt 00:00:10]} 6. Be3 {[%clk 01:32:47]} {[%emt
00:00:06]} c5 {[%clk 01:32:39]} {[%emt 00:00:12]} 7. d5 {[%clk 01:33:12]}
{[%emt 00:00:04]} e6 {[%clk 01:33:03]} {[%emt 00:00:06]} 8. Nf3 {[%clk
01:31:18]} {[%emt 00:02:24]} exd5 {[%clk 01:32:56]} {[%emt 00:00:37]} 9. exd5
{[%clk 01:31:30]} {[%emt 00:00:19]} b5 {[%clk 01:33:02]} {[%emt 00:00:25]} 10.
Nxb5 {[%clk 01:21:36]} {[%emt 00:10:24]} Ne4 {[%clk 01:33:09]} {[%emt
00:00:24]} 11. Qc2 {[%clk 01:13:56]} {[%emt 00:08:09]} Re8 {[%clk 01:26:58]}
{[%emt 00:06:42]} 12. Rc1 {[%clk 00:52:02]} {[%emt 00:22:23]} Qa5+ {[%clk
01:04:59]} {[%emt 00:22:29]} 13. Nc3 {[%clk 00:48:00]} {[%emt 00:04:31]} Bf5
{[%clk 00:50:24]} {[%emt 00:15:07]} 14. Bd3 {[%clk 00:43:33]} {[%emt 00:04:57]}
Ng3 {[%clk 00:46:59]} {[%emt 00:03:55]} 15. Rg1 {[%clk 00:41:07]} {[%emt
00:02:55]} Bh6 {[%clk 00:40:59]} {[%emt 00:06:30]} 16. Kd2 {[%clk 00:40:40]}
{[%emt 00:00:57]} Bxd3 {[%clk 00:28:53]} {[%emt 00:12:37]} 17. Kxd3 {[%clk
00:37:50]} {[%emt 00:03:20]} Na6 {[%clk 00:24:34]} {[%emt 00:04:49]} 18. a3
{[%clk 00:33:36]} {[%emt 00:04:44]} Bxe3 {[%clk 00:18:15]} {[%emt 00:06:49]} 19.
fxe3 {[%clk 00:33:56]} {[%emt 00:00:10]} Re7 {[%clk 00:12:17]} {[%emt
00:06:28]} 20. Qa4 {[%clk 00:29:39]} {[%emt 00:04:46]} Qb6 {[%clk 00:11:45]}
{[%emt 00:01:04]} 21. Qb5 {[%clk 00:29:25]} {[%emt 00:00:43]} Rae8 {[%clk
00:11:10]} {[%emt 00:01:05]} 22. Rge1 {[%clk 00:27:27]} {[%emt 00:02:27]} Nc7
{[%clk 00:10:03]} {[%emt 00:01:37]} 23. Qxb6 {[%clk 00:26:38]} {[%emt
00:01:20]} axb6 {[%clk 00:10:29]} {[%emt 00:00:05]} 24. e4 {[%clk 00:21:23]}
{[%emt 00:05:43]} f6 {[%clk 00:10:35]} {[%emt 00:00:25]} 25. h4 {[%clk
00:18:57]} {[%emt 00:02:55]} h6 {[%clk 00:09:02]} {[%emt 00:02:03]} 26. b4
{[%clk 00:16:26]} {[%emt 00:03:01]} Ra8 {[%clk 00:06:14]} {[%emt 00:03:18]} 27.
Ra1 {[%clk 00:16:01]} {[%emt 00:00:55]} Kf7 {[%clk 00:04:44]} {[%emt 00:02:01]}
28. bxc5 {[%clk 00:14:05]} {[%emt 00:02:26]} bxc5 {[%clk 00:05:07]} {[%emt
00:00:07]} 29. Nb5 {[%clk 00:12:29]} {[%emt 00:02:05]} Nxb5 {[%clk 00:04:48]}
{[%emt 00:00:48]} 30. cxb5 {[%clk 00:12:53]} {[%emt 00:00:06]} Ra4 {[%clk
00:05:16]} {[%emt 00:00:02]} 31. Nd2 {[%clk 00:11:59]} {[%emt 00:01:23]} f5
{[%clk 00:03:50]} {[%emt 00:01:57]} 32. exf5 {[%clk 00:08:59]} {[%emt
00:03:30]} Nxf5 {[%clk 00:03:57]} {[%emt 00:00:24]} 33. Rxe7+ {[%clk 00:08:35]}
{[%emt 00:00:54]} Kxe7 {[%clk 00:04:20]} {[%emt 00:00:07]} 34. Nc4 {[%clk
00:08:27]} {[%emt 00:00:35]} Kd8 {[%clk 00:03:47]} {[%emt 00:01:05]} 35. b6
{[%clk 00:07:51]} {[%emt 00:01:06]} Ne7 {[%clk 00:03:20]} {[%emt 00:00:56]} 36.
Rb1 {[%clk 00:06:09]} {[%emt 00:02:12]} Ra8 {[%clk 00:03:14]} {[%emt 00:00:37]}
37. b7 {[%clk 00:05:29]} {[%emt 00:01:10]} Rb8 {[%clk 00:03:42]} {[%emt
00:00:02]} 38. Nxd6 {[%clk 00:04:02]} {[%emt 00:01:57]} Kc7 {[%clk 00:04:01]}
{[%emt 00:00:11]} 39. Nb5+ {[%clk 00:03:44]} {[%emt 00:00:47]} Kxb7 {[%clk
00:04:03]} {[%emt 00:00:29]} 40. Nd6+ {[%clk 00:03:37]} {[%emt 00:00:38]} Kc7
{[%clk 00:04:28]} {[%emt 00:00:05]} 41. Rxb8 {[%clk 00:04:01]} {[%emt
00:00:05]} Kxb8 {[%clk 00:04:53]} {[%emt 00:00:05]} 42. Kc4 {[%clk 00:04:13]}
{[%emt 00:00:16]} g5 {[%clk 00:02:51]} {[%emt 00:02:33]} 43. hxg5 {[%clk
00:04:24]} {[%emt 00:00:20]} hxg5 {[%clk 00:03:05]} {[%emt 00:00:16]} 44. Kxc5
{[%clk 00:04:21]} {[%emt 00:00:33]} 1-0

[Event "NJSK 2018 Meisjes AB"]
[Site "Assen, Netherlands"]
[Date "2018.05.02"]
[Round "4.6"]
[White "Verhoeff, Timardi"]
[Black "De Boer, Marit"]
[Result "1-0"]
[TimeControl "40/90m+30m+30sec/move"]
[WhiteElo "1911"]
[BlackElo "1446"]

1. c4 {[%clk 01:30:57]} {[%emt 00:00:02]} e5 {[%clk 01:30:53]} {[%emt
00:00:08]} 2. g3 {[%clk 01:31:23]} {[%emt 00:00:04]} Nf6 {[%clk 01:31:11]}
{[%emt 00:00:13]} 3. Bg2 {[%clk 01:31:45]} {[%emt 00:00:07]} c6 {[%clk
01:31:25]} {[%emt 00:00:16]} 4. d4 {[%clk 01:30:00]} {[%emt 00:02:15]} e4
{[%clk 01:31:31]} {[%emt 00:00:24]} 5. Nc3 {[%clk 01:28:08]} {[%emt 00:02:22]}
d5 {[%clk 01:29:26]} {[%emt 00:02:36]} 6. Bg5 {[%clk 01:24:01]} {[%emt
00:04:37]} Be7 {[%clk 01:24:29]} {[%emt 00:05:27]} 7. e3 {[%clk 01:18:30]}
{[%emt 00:06:01]} h6 {[%clk 01:22:13]} {[%emt 00:02:46]} 8. Bxf6 {[%clk
01:18:33]} {[%emt 00:00:27]} Bxf6 {[%clk 01:22:31]} {[%emt 00:00:12]} 9. cxd5
{[%clk 01:14:49]} {[%emt 00:04:14]} cxd5 {[%clk 01:22:50]} {[%emt 00:00:12]} 10.
Qb3 {[%clk 01:14:40]} {[%emt 00:00:39]} Qa5 {[%clk 01:17:42]} {[%emt 00:05:38]}
11. Qxd5 {[%clk 01:13:33]} {[%emt 00:01:37]} Qxd5 {[%clk 01:17:48]} {[%emt
00:00:24]} 12. Nxd5 {[%clk 01:13:57]} {[%emt 00:00:05]} Kd8 {[%clk 01:15:20]}
{[%emt 00:02:58]} 13. Nxf6 {[%clk 01:13:31]} {[%emt 00:00:56]} gxf6 {[%clk
01:15:41]} {[%emt 00:00:10]} 14. Bxe4 {[%clk 01:13:51]} {[%emt 00:00:09]} Nd7
{[%clk 01:14:14]} {[%emt 00:01:58]} 15. Ne2 {[%clk 01:13:26]} {[%emt 00:00:54]}
Rb8 {[%clk 01:13:43]} {[%emt 00:01:01]} 16. Bf5 {[%clk 01:12:22]} {[%emt
00:01:34]} b6 {[%clk 01:13:13]} {[%emt 00:01:01]} 17. O-O {[%clk 01:12:09]}
{[%emt 00:00:43]} Ba6 {[%clk 01:13:21]} {[%emt 00:00:22]} 18. Rfe1 {[%clk
01:12:31]} {[%emt 00:00:07]} Rg8 {[%clk 01:12:53]} {[%emt 00:00:58]} 19. Nc3
{[%clk 01:12:01]} {[%emt 00:01:00]} Rg5 {[%clk 01:11:56]} {[%emt 00:01:27]} 20.
e4 {[%clk 01:11:12]} {[%emt 00:01:19]} h5 {[%clk 01:10:59]} {[%emt 00:01:27]}
21. h4 {[%clk 01:11:22]} {[%emt 00:00:20]} Rg8 {[%clk 01:09:43]} {[%emt
00:01:47]} 22. Nd5 {[%clk 01:10:55]} {[%emt 00:00:57]} Bb7 {[%clk 01:08:42]}
{[%emt 00:01:31]} 23. Bxd7 {[%clk 01:09:11]} {[%emt 00:02:14]} Bxd5 {[%clk
01:07:43]} {[%emt 00:01:29]} 24. Bh3 {[%clk 01:08:32]} {[%emt 00:01:08]} Be6
{[%clk 01:07:45]} {[%emt 00:00:29]} 25. Bxe6 {[%clk 01:07:48]} {[%emt
00:01:14]} fxe6 {[%clk 01:04:17]} {[%emt 00:03:57]} 26. d5 {[%clk 01:06:36]}
{[%emt 00:01:41]} e5 {[%clk 01:03:41]} {[%emt 00:01:06]} 27. Rac1 {[%clk
01:05:42]} {[%emt 00:01:24]} Ke7 {[%clk 01:02:46]} {[%emt 00:01:26]} 28. Rc7+
{[%clk 01:05:34]} {[%emt 00:00:38]} Kd6 {[%clk 01:02:55]} {[%emt 00:00:21]} 29.
Rec1 {[%clk 01:05:52]} {[%emt 00:00:12]} 1-0